Cogmind - Beta 13 --- EXPLORER MODE // 2024.04.14 @ 22:04:48 Player: Laika Result: Self-destructed Performance ------------- Evolutions (1) 500 Regions Visited (2) 400 Robots Destroyed (25) 125 Value Destroyed (394) 394 Prototype IDs (0) 0 Alien Tech Used (0) 0 Bonus (0) 0 TOTAL SCORE: 1419 Bonus ------- None Cogmind --------- Core Integrity 339/400 Matter 300/300 Energy 400/400 System Corruption 0% Temperature Warning (341) Movement Walking (120) Location -9/Materials Parts ------- > --- POWER (2) -------- Ion Engine Ion Engine > --- PROPULSION (4) --- Aluminum Leg Aluminum Leg > --- UTILITY (2) ------ Sensor Array Weapon Shielding > --- WEAPON (2) ------- Medium Laser Particle Gun > --- INVENTORY (5) ---- Medium Laser Peak State ------------ > --- POWER ------------ Ion Engine Light Ion Engine > --- PROPULSION ------- Aluminum Leg Aluminum Leg > --- UTILITY ---------- Improved Terrain Scanner Weapon Shielding > --- WEAPON ----------- Medium Laser Medium Laser > --- INVENTORY -------- (None) [Rating: 10] Favorites ----------- Power Ion Engine Engine Ion Engine Propulsion Aluminum Leg Leg Aluminum Leg Flight Unit Flight Unit Utility Weapon Shielding Device Improved Terrain Scanner Processor Targeting Computer Protection Weapon Shielding Weapon Medium Laser Energy Gun Medium Laser Ballistic Gun Assault Rifle Special Weapon Mining Laser Build | -11 -10 -9 ------- Run | Yrd Mat Mat Slots Evolved 3 | . 1 2 Power 1 | . 1 . Propulsion 2 | . . 2 Utility . | . . . Weapon . | . . . Parts Attached 19 | 9 10 . Power 3 | 1 2 . Engine 3 | 1 2 . Core . | . . . Reactor . | . . . Propulsion 6 | 2 4 . Treads . | . . . Leg 4 | 2 2 . Wheel . | . . . Hover . | . . . Flight 2 | . 2 . Utility 4 | 3 1 . Device 2 | 1 1 . Storage . | . . . Processor 1 | 1 . . Hackware . | . . . Protection 1 | 1 . . Artifact . | . . . Weapon 6 | 3 3 . Energy Gun 4 | 2 2 . Energy Cannon . | . . . Ballistic Gun 1 | 1 . . Ballistic Cannon . | . . . Launcher . | . . . Special Weapon 1 | . 1 . Impact Weapon . | . . . Slashing Weapon . | . . . Piercing Weapon . | . . . Special Melee Weapon . | . . . Unidentified Prototypes . | . . . Parts Lost . | . . . Power . | . . . Propulsion . | . . . Utility . | . . . Weapon . | . . . Highest Loss Streak . | . . . To Critical Strikes . | . . . Average Slot Usage (%) 96 | . 99 80 Engine 24 | . 24 20 Leg 23 | . 24 20 Device 11 | . 11 10 Protection 11 | . 12 10 Energy Gun 21 | . 21 20 Special Weapon 3 | . 3 . Naked Turns . | . . . Heaviest Build 17 | 9 17 17 Greatest Support 20 | 20 20 20 Greatest Overweight (x) 1 | . 1 . Average Overweight (x) . | . . . Largest Inventory Capacity 5 | 5 5 5 Average Capacity 5 | 5 5 5 Most Carried 3 | 3 3 1 Average Carried . | . . 1 Final Capacity 5 | 5 5 5 Final Carried 1 | . 1 1 Class Distribution -------------------- 100% | Hacker-Mutant Dominant Class ---------------- Hacker-Mutant | -10/Materials Hacker-Mutant | -9/Materials Resources | -11 -10 -9 ----------- Run | Yrd Mat Mat Matter Collected 468 | 290 178 . Remotely . | . . . Salvage Created 705 | 190 291 224 Parts 51 | 16 18 17 Haulers Intercepted 1 | . 1 . Recyclers Shooed 1 | . . 1 Parts Field Recycled . | . . . Retrieved Matter . | . . . Parts Self-Destructed . | . . . Prevented . | . . . Kills | -11 -10 -9 ------- Run | Yrd Mat Mat Combat Hostiles Destroyed 10 | . 6 4 Guns 9 | . 6 3 Classes Destroyed 9 | 3 5 1 Worker 3 | 2 . 1 Builder 1 | . 1 . Tunneler 5 | 5 . . Hauler 1 | . 1 . Recycler 1 | 1 . . Watcher 4 | . 3 1 Swarmer 4 | . 4 . Grunt 4 | . 2 2 Sentry 2 | . . 2 Best Kill Streak 5 | 5 2 2 Combat Bots Only 2 | . 2 2 Max Kills in Single Turn 2 | 1 2 1 Gunslinging 1 | . 1 . Exploded . | . . . Melee . | . . . Uniques/NPCs Destroyed . | . . . Combat | -11 -10 -9 -------- Run | Yrd Mat Mat Hostile Shots Fired 65 | . 26 39 Missed 20 | . 7 13 Damage Taken 352 | . 144 208 Core 103 | . 42 61 Absorbed by Shields . | . . . Redirected to Shielding 13 | . 8 5 Ignored by Resistances 224 | . 90 134 Core Remaining (%) 91 | 100 83 . Volleys Fired 62 | 8 34 20 Largest 2 | 2 2 2 Hottest 115 | 100 100 115 Shots Fired 105 | 16 53 36 Gun 97 | 16 45 36 Cannon . | . . . Launcher . | . . . Special 8 | . 8 . Kinetic . | . . . Thermal 105 | 16 53 36 Explosive . | . . . Electromagnetic . | . . . Robot Hit Streak 14 | 12 14 13 Robot Miss Streak 2 | . 2 1 Penetration Max . | . . . Secondary Targets 2 | . 1 1 Max Gunslinging Chain 1 | . 1 1 Shots Hit Robots 75 | 12 33 30 Core Hits 32 | 9 14 9 Critical Kills . | . . . Critical Parts Destroyed . | . . . Critical Strikes 8 | 5 1 2 Burn 8 | 5 1 2 Melee Attacks . | . . . Impact . | . . . Slashing . | . . . Piercing . | . . . Sneak Attacks . | . . . Combat Hostiles . | . . . Follow-up Attacks . | . . . Damage Inflicted 986 | 149 424 413 Guns 962 | 149 400 413 Cannons . | . . . Explosions . | . . . Melee . | . . . Ramming . | . . . Kinetic . | . . . Thermal 986 | 149 424 413 Explosive . | . . . Electromagnetic . | . . . Impact . | . . . Slashing . | . . . Piercing . | . . . Highest Corruption . | . . . Average Corruption . | . . . Corruption Purged . | . . . Corruption Blocked . | . . . Overload Shots . | . . . Overflow Damage . | . . . Projectiles . | . . . Explosions . | . . . Melee . | . . . Knockbacks . | . . . Impact . | . . . Kinetic . | . . . Secondary . | . . . Self-Inflicted Damage . | . . . Shots . | . . . Rammed . | . . . Targets Rammed . | . . . Kicked . | . . . Crushed . | . . . Highest Temperature 388 | 177 388 372 Average Temperature 114 | 68 132 94 Received Heat Transfer 291 | . 135 156 Effects 5 | . 4 1 Energy Bleed 1 | . 1 . Interference 1 | . 1 . Matter Decay 2 | . 2 . Damage (minor) 1 | . . 1 Siege Activations . | . . . Robots Corrupted . | . . . Combat Hostiles . | . . . Parts Fried . | . . . Impact Corruptions . | . . . Robots Melted 2 | . 1 1 Combat Hostiles 1 | . . 1 Parts Melted 9 | 5 3 1 Heat Transferred 3380 | 814 1308 1258 Parts Sabotaged . | . . . Parts Stolen . | . . . Parts Stripped . | . . . Power Chain Reactions . | . . . Alert | -11 -10 -9 ------- Run | Yrd Mat Mat Peak Influence 170 | 40 166 170 Initial 19 | . 19 13 Average 59 | 22 62 86 Maximum Alert Level . | . . . Low Security (%) 100 | 100 100 100 Level 1 . | . . . Level 2 . | . . . Level 3 . | . . . Level 4 . | . . . Level 5 . | . . . High Security . | . . . Max Security . | . . . Squads Dispatched . | . . . Investigation . | . . . Extermination . | . . . Reinforcement . | . . . Assault . | . . . Garrison . | . . . Intercept . | . . . Searches Triggered . | . . . Construction Impeded . | . . . Haulers Reinforced . | . . . Active Scanning Responses . | . . . Cargo Convoy Interrupts . | . . . Stealth | -11 -10 -9 --------- Run | Yrd Mat Mat Distress Signals 3 | . 1 2 Communications Jammed . | . . . Distress Signals . | . . . Times Spotted 20 | . 9 11 Peak Tracking Total 8 | . 2 8 Tactical Retreats 1 | . 1 . Traps | -11 -10 -9 ------- Run | Yrd Mat Mat Traps Triggered 2 | . 1 1 Indirectly . | . . . Trap Hack Attempts . | . . . Triggered . | . . . Disarmed . | . . . Reprogrammed . | . . . Reused . | . . . Traps Extracted . | . . . Installed . | . . . Triggered . | . . . Machines | -11 -10 -9 ---------- Run | Yrd Mat Mat Machines Disabled . | . . . Max in Single Turn . | . . . Machines Repaired . | . . . Machines Dismantled . | . . . Machines Sabotaged . | . . . Overloaded Fab Kills . | . . . Hacking | -11 -10 -9 --------- Run | Yrd Mat Mat Machines Accessed 2 | . 2 . Terminals . | . . . Fabricators . | . . . Repair Stations . | . . . Recycling Units 2 | . 2 . Scanalyzers . | . . . Garrison Access . | . . . Total Hacks 5 | . 5 . Successful 2 | . 2 . Failed 3 | . 3 . Catastrophic . | . . . Database Lockouts . | . . . Manual . | . . . Terminals . | . . . Fabricators . | . . . Repair Stations . | . . . Recycling Units 5 | . 5 . Scanalyzers . | . . . Garrison Access . | . . . Terminal Hacks . | . . . Fabricator Hacks . | . . . Repair Station Hacks . | . . . Recycling Unit Hacks 2 | . 2 . Recycle Component 1 | . 1 . Process 1 | . 1 . Scanalyzer . | . . . Garrison Access Hacks . | . . . Unauthorized Hacks . | . . . Terminals . | . . . Fabricators . | . . . Repair Stations . | . . . Recycling Units . | . . . Scanalyzers . | . . . Garrison Access . | . . . Data Cores Recovered . | . . . Used . | . . . Hacking Detections 1 | . 1 . Full Trace Events 1 | . 1 . Feedback Events . | . . . Feedback Blocked . | . . . Robot Schematics Acquired . | . . . Robots Built . | . . . Authchips . | . . . Time . | . . . Total Robot Build Rating . | . . . Part Schematics Acquired . | . . . Parts Built . | . . . Authchips . | . . . Time . | . . . Total Part Build Rating . | . . . Parts Repaired . | . . . Time . | . . . Parts Recycled 1 | . 1 . Recycled Matter 26 | . 26 . Retrieved Matter . | . . . Retrieved Components . | . . . Parts Scanalyzed . | . . . Part Schematics Acquired . | . . . Parts Damaged . | . . . Bothacking | -11 -10 -9 ------------ Run | Yrd Mat Mat Used RIF Installer . | . . . Robots Hacked . | . . . Non-combat . | . . . Combat . | . . . Robot Hacks Applied . | . . . Relay Couplers Released . | . . . Fabnet Peak Effective % . | . . . Robots Rewired . | . . . Allies Hacked . | . . . Hacks Repelled . | . . . Allies | -11 -10 -9 -------- Run | Yrd Mat Mat Total Allies . | . . . Largest Group . | . . . Highest-Rated Group . | . . . Highest-Rated Ally . | . . . Total Orders . | . . . Ally Attacks . | . . . Total Damage . | . . . Kills . | . . . Allies Corrupted . | . . . Allies Melted . | . . . Intel | -11 -10 -9 ------- Run | Yrd Mat Mat Robot Analysis Total . | . . . Derelict Logs Recovered . | . . . Drone Launches . | . . . Drone Recoveries . | . . . Exploration | -11 -10 -9 ------------- Run | Yrd Mat Mat Turns Passed 1276 | 207 921 148 Spaces Moved 750 | 70 605 75 Core 12 | 12 . . Treads . | . . . Legs 719 | 58 586 75 Wheels . | . . . Hover . | . . . Flight 19 | . 19 . Fastest Speed 50 | 50 117 120 Average Speed 118 | 108 119 120 Slowest Speed 120 | 120 120 120 Overloaded Moves . | . . . Propulsion Burnouts . | . . . Robots Hopped . | . . . Cave-ins Triggered . | . . . Exploration Rate (%) 29 | 4 75 10 Regions Visited 2 Branch Regions . Pre-discovered Areas . | . . . Known Exits Taken 2 | 1 1 . Unknown Exits Taken . | . . . Scrap Searched . | . . . Spaces Dug 5 | . 5 . Terrain Destroyed 6 | . 6 . Melee . | . . . Projectile 6 | . 6 . AOE . | . . . Terrain Rammed . | . . . Walls Destroyed . | . . . Machines Disabled . | . . . Actions | -11 -10 -9 --------- Run | Yrd Mat Mat Total 1022 | 187 738 97 Wait 159 | 89 68 2 Move 748 | 69 604 75 Hop . | . . . Pick Up 17 | 9 8 . Fast Attach . | . . . Attach 19 | 9 10 . Detach 11 | 2 9 . Swap . | . . . Drop 6 | 1 5 . Fire 62 | 8 34 20 Melee . | . . . Ram . | . . . Kick . | . . . Crush . | . . . Escape Stasis . | . . . Rewire . | . . . Trap . | . . . Miscellaneous . | . . . Route ------- -11/Scrapyard -10/Materials (discovered 3 exits: *Mat x2 / *Min) -9/Materials History --------- Turn | Location | Event 6 | -11/Scrapyard | Identified exit to Materials 6 | -11/Scrapyard | Discovered exit to Materials (range 13) 208 | -11/Scrapyard | Entered Materials 208 | -10/Materials | Evolved 1 slot: Power x1 268 | -10/Materials | Identified exit to Mines 268 | -10/Materials | Discovered exit to Mines (range 13) 301 | -10/Materials | Build established: Hacker-Mutant 489 | -10/Materials | Identified exit to Materials 489 | -10/Materials | Discovered exit to Materials (range 8) 906 | -10/Materials | Discovered exit to Materials (range 15) 1129 | -10/Materials | Entered another Materials area 1129 | -9/Materials | Evolved 2 slots: Propulsion x2 1277 | -9/Materials | Self-destructed Last Messages --------------- 01247_ U-05 Engineer lays Concrete. 01247_ W-16 Scout distress signal alerts nearby ally. 01258_ C-30 ARC bursts open, deploying its payload. 01258_ G-47 Trooper unfolds itself. 01258_ G-34 Mercenary unfolds itself. 01258_ K-01 Serf cleans the Hadron Collector. 01259_ G-34 Mercenary suffers critical hit (Burn). 01262_ G-34 Mercenary destroyed. 01262_ Switching to secondary target: G-47 Trooper. 01265_ K-01 Serf destroyed. 01270_ R-06 Scavenger collects Lgt. Treads. 01271_ K-01 Serf collects debris. 01273_ Overheating: Aluminum Leg damaged (-15). 01273_ R-06 Scavenger collects Lgt. Armor Plating. 01273_ K-01 Serf collects debris. Map ----- +----------------------------------------------------+ | ?????????????????????????????????????????????????? | | ????????????????????????????????????????????????#? | | ?????????????????????????#+###????????????????? #? | | ????????????????????????? ???????????????? +? | | ?????????????????????????? ?????????????? #? | | ???????????????????????????? ?????????????? #? | | ?????????????????????????????# ?#######???? #? | | ?????????????????????????????# ## ##### #? | | ?????????????????????????????# %= #? | | ?????????????????????????????# % [ #? | | ?????????????????????????????# #? | | ?????????????????????????????## ### ##+###+##? | | ??????????????????????????????????## ##????????? | | ???????????????????????????????????# #?????????? | | ???????????????????????????????????# #?????????? | | ??????????????##########+##????????# #?????????? | | ????????????? % ????????# #?????????? | | ??????????????? g% ????????# #?????????? | | ??????????????? ! [!! ????????# #?????????? | | ???????????????? [!! ????????+ #?????????? | | ????????????????""" [! ????????# #?????????? | | ????????????????""" %! #????????# ########### | | ??????????? """ = #????????# | | ?????????? """ #????????# | | ?????????? t #????????# | | ?????????? @#????????# ###### | | ?????????? g tg #????????# #????? | | ?????????????########## ##???????# #????? | | ?????????????????????# ######### #####? | | ?????????????????????# r??? #? | | ???????????????????? + =%* = #? | | ??????????????????? # ^! !%! #? | | ??????????????????"" # ###############+######? | | ?????????????????"""?## k ##?????????????? ?????? | | ?????????????????""???# #??????????????? ?????? | | ??????????????????????# #????????????????""????? | | ??????????????????????# gg#??????????????????????? | | ??????????????????????# #??????????????????????? | | ??????????????????????# #??????????????????????? | | ??????????????????????# #??????????????????????? | | ??????????????????????# a???????????????????????? | | ??????????????????????# ???????????????????????? | | ??????????????????????# ???????????????????????? | | ??????????????????????# ???????????????????????? | | ??????????????????????# ???????????????????????? | | ??????????????????????# ???????????????????????? | | ??????????????????????? ???????????????????????? | | ?????????????????????????????????????????????????? | | ?????????????????????????????????????????????????? | | ?????????????????????????????????????????????????? | +----------------------------------------------------+ Best States ------------- Heat Dissipation 28 Energy Generation 15 Energy Capacity 400 Matter Stores 300 Matter Capacity 300 Sight Range 16 Robot Scan Range 14 Terrain Scan Range 16 Terrain Scan Density 10 Resistance: KI 35 Resistance: TH 35 Resistance: EX 35 Resistance: EM 35 Resistance: I 35 Resistance: S 35 Resistance: P 35 Weapon Shielding 33 Evasion (%) 55 Targeting Accuracy 5 Offensive Hacking 20 Item Schematics ----------------- None Robot Schematics ------------------ None Fabricated ------------ Nothing Alien Tech Used ----------------- None Achievements -------------- None Challenges ------------ None Game ------ Seed SeismicSeismicNeutralizer Manual? 0 Play Time 00:12:17 Cumulative 2.0 hours Start 2024.04.14 @ 21:53:36 End 2024.04.14 @ 22:04:48 Sessions 1 Manual Loads 0 Difficulty Explorer Special Mode None Game No. 12 Rogue 0 Adventurer 0 Explorer 12 Win Type - Total 0 Types 0/0/0/0/0/0/0/0/0 Lore% 3 Gallery% 8 Achievement% 8 Wizard Run 0 Options --------- Layout 2 ASCII 0 Keyboard 0 Movement Mouse Keybinds 0 Fullscreen 1 Font 24/Smallcaps Map View 50x44 Zoom Use 0% Tactical HUD 1 Map Filters NONE Filters NONE Steam 1 RUN: 9b7f7fe0-1885-4938-93eb-2c0695955791